lending/lending_fUSD_20250122
["ID","MTS","AMOUNT","RATE_DAILY","PERIOD"]
[349948059,1737529877064,-500.0,0.00021905,2]
[349948060,1737529877075,-1122.95,0.00021905,2]
[349948061,1737529877085,-1359.17,0.00021905,2]
[349948062,1737529877095,-821.95,0.00021905,2]
[349948063,1737529877105,-795.35,0.00021905,2]
[349948064,1737529877115,-750.45,0.00021905,2]
[349948065,1737529877124,-500.0,0.00021905,2]
[349948066,1737529877134,-920.57,0.00021905,2]
[349948067,1737529877144,-500.0,0.00021905,2]
[349948068,1737529877154,-500.0,0.00021905,2]
[349948069,1737529877164,-1819.89,0.00021905,2]
[349948070,1737529877173,-1136.19,0.00021905,2]
[349948071,1737529877183,-500.0,0.00021905,2]
[349948072,1737529877193,-1148.88,0.00021905,2]
[349948073,1737529877203,-513.27,0.00021905,2]
[349948074,1737529877213,-953.42,0.00021905,2]
[349948075,1737529877223,-500.0,0.00021905,2]
[349948076,1737529877233,-653.89,0.00021905,2]
[349948077,1737529877244,-2074.69,0.00021905,2]
[349948078,1737529877254,-500.0,0.00021905,2]
[349948079,1737529877265,-1178.81,0.00021905,2]
[349948080,1737529877275,-973.35,0.00021905,2]
[349948081,1737529877285,-475.27788232,0.00021905,2]
[349948082,1737529877296,-3313.27,0.00021905,2]
[349948083,1737529877305,-609.31,0.00021905,2]
[349948084,1737529877315,-500.0,0.00021905,2]
[349948085,1737529877325,-575.33,0.00021905,2]
[349948086,1737529877335,-708.86,0.00021905,2]
[349948087,1737529877345,-1956.81,0.00021905,2]
[349948088,1737529877355,-500.0,0.00021905,2]
[349948089,1737529877366,-1484.41,0.00021905,2]
[349948090,1737529877376,-1469.71,0.00021905,2]
[349948091,1737529877386,-2981.83,0.00021905,2]
[349948092,1737529877396,-2775.38,0.00021905,2]
[349948093,1737529877406,-1922.66,0.00021905,2]
[349948094,1737529877416,-1248.67,0.00021905,2]
[349948095,1737529877425,-672.01,0.00021905,2]
[349948096,1737529877436,-3316.5,0.00021905,2]
[349948097,1737529877445,-500.0,0.00021905,2]
[349948098,1737529877456,-914.05,0.00021905,2]
[349948099,1737529877466,-1021.47,0.00021905,2]
[349948100,1737529877476,-4783.23,0.00021905,2]
[349948101,1737529877486,-1593.19,0.00021905,2]
[349948102,1737529877496,-709.2,0.00021905,2]
[349948103,1737529877506,-500.0,0.00021905,2]
[349948104,1737529877516,-10193.0,0.00021905,2]
[349948105,1737529877526,-1341.19,0.00021905,2]
[349948106,1737529877537,-6190.52,0.00021905,2]
[349948107,1737529877547,-5688.36,0.00021905,2]
[349948108,1737529877558,-500.0,0.00021905,2]
[349948109,1737529877568,-1341.24,0.00021905,2]
[349948110,1737529877578,-2516.76,0.00021905,2]
[349948111,1737529877588,-261.15535836,0.00021905,2]
[349948112,1737529877598,-1015.75,0.00021905,2]
[349948113,1737529877608,-636.88,0.00021905,2]
[349948114,1737529877618,-4247.11,0.00021905,2]
[349948115,1737529877628,-702.79,0.00021905,2]
[349948116,1737529877638,-500.0,0.00021905,2]
[349948117,1737529877648,-848.47,0.00021905,2]
[349948118,1737529877658,-908.52,0.00021905,2]
[349948119,1737529877667,-1723.59,0.00021905,2]
[349948120,1737529877678,-3079.06,0.00021905,2]
[349948121,1737529877688,-619.39,0.00021905,2]
[349948122,1737529877697,-3591.78,0.00021905,2]
[349948123,1737529877707,-2538.2,0.00021905,2]
[349948124,1737529877717,-500.0,0.00021905,2]
[349948125,1737529877832,-500.0,0.00021905,2]
[349948126,1737529877841,-500.0,0.00021905,2]
[349948127,1737529877850,-966.25,0.00021905,2]
[349948128,1737529877861,-500.0,0.00021905,2]
[349948129,1737529877870,-717.54,0.00021905,2]
[349948130,1737529877880,-1456.38,0.00021905,2]
[349948131,1737529877890,-500.0,0.00021905,2]
[349948132,1737529877900,-1822.7,0.00021905,2]
[349948133,1737529877910,-526.05,0.00021905,2]
[349948134,1737529877919,-3479.05,0.00021905,2]
[349948135,1737529877930,-860.21,0.00021905,2]
[349948136,1737529877940,-903.51,0.00021905,2]
[349948137,1737529877950,-1992.09,0.00021905,2]
[349948138,1737529877960,-500.0,0.00021905,2]
[349948139,1737529877970,-1529.61,0.00021905,2]
[349948140,1737529877979,-3354.94,0.00021905,2]
[349948141,1737529877989,-560.81,0.00021905,2]
[349948142,1737529877999,-1090.16,0.00021905,2]
[349948143,1737529878010,-500.0,0.00021905,2]
[349948144,1737529878020,-776.21,0.00021905,2]
[349948145,1737529878034,-1051.85,0.00021905,2]
[349948146,1737529878044,-1000.0,0.00021905,2]
[349948147,1737529878054,-770.14,0.00021905,2]
[349948148,1737529878065,-500.0,0.00021905,2]
[349948149,1737529878074,-847.9,0.00021905,2]
[349948150,1737529878084,-500.04,0.00021905,2]
[349948151,1737529878093,-500.0,0.00021906,2]
[349948152,1737529878104,-500.0,0.00021906,2]
[349948153,1737529878114,-500.0,0.00021906,2]
[349948154,1737529878124,-542.26,0.00021906,2]
[349948155,1737529878134,-500.0,0.00021906,2]
[349948156,1737529878143,-687.88,0.00021906,2]
[349948157,1737529878153,-500.0,0.00021906,2]
[349948158,1737529878163,-500.0,0.00021906,2]
[349948159,1737529878173,-500.0,0.00021906,2]
[349948160,1737529878183,-500.0,0.00021906,2]
[349948161,1737529878194,-705.63,0.00021906,2]
[349948162,1737529878203,-500.0,0.00021906,2]
[349948163,1737529878213,-500.0,0.00021906,2]
[349948164,1737529878223,-609.77891105,0.00021906,2]
[349948165,1737529878233,-500.0,0.00021906,2]
[349948166,1737529878242,-638.86,0.00021906,2]
[349948167,1737529878251,-500.0,0.00021906,2]
[349948168,1737529878260,-500.0,0.00021906,2]
[349948169,1737529878269,-500.0,0.00021906,2]
[349948170,1737529878279,-517.55,0.00021906,2]
[349948171,1737529878288,-500.0,0.00021906,2]
[349948172,1737529878298,-714.2,0.00021906,2]
[349948173,1737529878307,-500.0,0.00021906,2]
[349948174,1737529878317,-500.0,0.00021906,2]
[349948175,1737529878326,-862.22,0.00021906,2]
[349948176,1737529878337,-598.82,0.00021906,2]
[349948177,1737529878347,-1030.51,0.00021906,2]
[349948178,1737529878357,-500.0,0.00021906,2]
[349948179,1737529878366,-1375.23,0.00021906,2]
[349948180,1737529878376,-533.65,0.00021906,2]
[349948181,1737529878385,-763.67,0.00021906,2]
[349948182,1737529878395,-500.0,0.00021906,2]
[349948183,1737529878404,-736.55,0.00021906,2]
[349948184,1737529878414,-460.37213412,0.00021906,2]
[349948185,1737529878424,-500.0,0.00021906,2]
[349948186,1737529878434,-500.0,0.00021906,2]
[349948187,1737529878443,-500.0,0.00021906,2]
[349948188,1737529878452,-500.0,0.00021906,2]
[349948189,1737529878461,-500.0,0.00021906,2]
[349948190,1737529878471,-1550.32,0.00021906,2]
[349948191,1737529878480,-906.23,0.00021906,2]
[349948192,1737529878490,-1240.63,0.00021906,2]
[349948193,1737529878499,-500.0,0.00021906,2]
[349948194,1737529878509,-955.97,0.00021906,2]
[349948195,1737529878519,-758.19,0.00021906,2]
[349948196,1737529878529,-500.0,0.00021906,2]
[349948197,1737529878539,-500.0,0.00021906,2]
[349948198,1737529878551,-915.15,0.00021906,2]
[349948199,1737529878560,-500.0,0.00021906,2]
[349948200,1737529878570,-500.0,0.00021906,2]
[349948201,1737529878580,-500.0,0.00021906,2]
[349948202,1737529878589,-2855.53,0.00021906,2]
[349948203,1737529878600,-2566.89,0.00021906,2]
[349948204,1737529878610,-554.96,0.00021917,2]
[349948205,1737529878620,-554.96,0.00021917,2]
[349948206,1737529878629,-554.96,0.00021917,2]
[349948207,1737529878639,-554.96,0.00021917,2]
[349948208,1737529878648,-554.96,0.00021917,2]
[349948209,1737529878658,-554.96,0.00021917,2]
[349948210,1737529878667,-554.96,0.00021917,2]
[349948211,1737529878676,-554.96,0.00021917,2]
[349948212,1737529878686,-500.0,0.00021917,2]
[349948213,1737529878697,-1849.23,0.00021917,2]
[349948214,1737529878706,-958.45,0.00021917,2]
[349948215,1737529878717,-2595.22,0.00021917,2]
[349948216,1737529878727,-1488.27,0.00021917,2]
[349948217,1737529878737,-3225.59,0.00021917,2]
[349948218,1737529878747,-1733.274758,0.00021917,2]
[349948219,1737529878756,-5301.98,0.00021917,2]
[349948220,1737529878766,-2429.15,0.00021917,2]
[349948221,1737529878775,-653.79,0.00021917,2]
[349948222,1737529878785,-653.79,0.00021917,2]
[349948223,1737529878795,-653.79,0.00021917,2]
[349948224,1737529878804,-653.79,0.00021917,2]
[349948225,1737529878814,-653.79,0.00021917,2]
[349948226,1737529878823,-653.79,0.00021917,2]
[349948227,1737529878833,-653.79,0.00021917,2]
[349948228,1737529878843,-653.79,0.00021917,2]
[349948229,1737529878852,-1239.25,0.00021917,2]
[349948230,1737529878862,-1238.73,0.00021917,2]
[349948231,1737529878871,-500.0,0.00021917,2]
[349948232,1737529878881,-1170.583413,0.00021917,2]
[349948233,1737529878891,-500.0,0.00021917,2]
[349948234,1737529878901,-1699.68,0.00021917,2]
[349948235,1737529878910,-2493.36,0.00021917,2]
[349948236,1737529878921,-2152.93,0.00021917,2]
[349948237,1737529878931,-500.0,0.00021917,2]
[349948238,1737529878941,-3276.6,0.00021917,2]
[349948239,1737529878951,-1165.12,0.00021917,2]
[349948240,1737529878960,-1394.36,0.00021917,2]
[349948241,1737529878969,-809.38,0.00021917,2]
[349948242,1737529878978,-1475.31,0.00021917,2]
[349948243,1737529878987,-688.14,0.00021917,2]
[349948244,1737529878996,-500.0,0.00021917,2]
[349948245,1737529879006,-4786.95,0.00021917,2]
[349948246,1737529879015,-1695.25,0.00021917,2]
[349948247,1737529879028,-1472.15,0.00021917,2]
[349948248,1737529879038,-3787.07,0.00021917,2]
[349948249,1737529879048,-1234.08,0.00021917,2]
[349948250,1737529879060,-1624.99,0.00021917,2]
[349948251,1737529879070,-1499.85,0.00021917,2]
[349948252,1737529879080,-1816.57,0.00021917,2]
[349948253,1737529879090,-906.98,0.00021917,2]
[349948254,1737529879101,-2331.61,0.00021917,2]
[349948255,1737529879111,-1917.72,0.00021917,2]
[349948256,1737529879121,-1866.02,0.00021917,2]
[349948257,1737529879131,-691.42,0.00021917,2]
[349948258,1737529879140,-1206.34,0.00021917,2]
[349948259,1737529879150,-500.0,0.00021917,2]
[349948260,1737529879160,-2875.88,0.00021917,2]
[349948261,1737529879170,-1289.63,0.00021917,2]
[349948262,1737529879181,-3720.26,0.00021917,2]
[349948263,1737529879191,-2211.76,0.00021917,2]
[349948264,1737529879202,-1958.37,0.00021917,2]
[349948265,1737529879211,-3222.96,0.00021917,2]
[349948266,1737529879220,-4970.02,0.00021917,2]
[349948267,1737529879230,-1265.23,0.00021917,2]
[349948268,1737529879240,-1678.79,0.00021917,2]
[349948269,1737529879249,-3887.04,0.00021917,2]
[349948270,1737529879259,-1716.78,0.00021917,2]
[349948271,1737529879269,-500.0,0.00021917,2]
[349948272,1737529879280,-500.0,0.00021917,2]
[349948273,1737529879290,-780.76,0.00021917,2]
[349948274,1737529879301,-6061.4,0.00021917,2]
[349948275,1737529879311,-500.0,0.00021917,2]
[349948276,1737529879321,-864.5,0.00021917,2]
[349948277,1737529879331,-1204.94,0.00021917,2]
[349948278,1737529879341,-4000.0,0.00021918,2]
[349948279,1737529879351,-150.0,0.00021918,2]
[349948280,1737529879361,-500.0,0.00021918,2]
[349948281,1737529879371,-500.0,0.00021945,2]
[349948282,1737529879381,-1252.28,0.00021959,7]
[349948283,1737529879391,-1252.28,0.00021959,7]
[349948284,1737529879401,-350.0,0.00021968,2]
[349948285,1737529879519,-500.0,0.00021973,2]
[349948286,1737529879530,-150.0,0.00021978,4]
[349948287,1737529879540,-17786.9525262,0.00021985,3]
[349948288,1737529879550,-500.0,0.00021988,13]
[349948289,1737529879565,-500.0,0.00021988,15]
[349948290,1737529879577,-11000.0,0.0002199,2]
[349948291,1737529879587,-41220.05590457,0.00021998,2]
[349948292,1737529879597,-20000.0,0.00021999,2]
[349948293,1737529879607,-112877.96730602,0.00021999,2]
[349948294,1737529879616,-15082.83537046,0.00021999,2]
[349948295,1737529879626,-30113.13038273,0.00021999,2]
[349948296,1737529879635,-10496.96550314,0.00021999,2]
[349948297,1737529879924,-500.0,0.00019987,2]
[349948298,1737529879934,-1016.78,0.0002,2]
[349948299,1737529879944,-795.94,0.00021095,2]
[349948300,1737529879954,-2393.15331267,0.00021999,2]
[349948301,1737529880185,-313.719998,0.00020261,2]
[349948302,1737529880258,-186.280002,0.00020261,2]
[349948303,1737529880275,-269.50371972,0.00020273,2]
[349948304,1737529880720,-500.0,0.00019178,2]
[349948305,1737529880730,-1822.3843069,0.00019352,2]
[349948306,1737529880742,-3426.35141409,0.00019352,2]
[349948307,1737529880751,-500.0,0.00019987,2]
[349948308,1737529880761,-500.0,0.00020261,2]
[349948309,1737529880771,-747.27628028,0.00020273,2]
[349948310,1737529880780,-159.52468185,0.00020535,2]
[349948311,1737529880967,-534.0,0.00019712,2]
[349948312,1737529880977,-641.28008165,0.00019986,2]
[349948313,1737529880987,-340.47531815,0.00020535,2]
[349948314,1737529880997,-1016.78,0.00020547,2]
[349948315,1737529881007,-500.0,0.00020809,2]
[349948316,1737529881017,-1016.78,0.00020821,2]
[349948317,1737529881389,-500.0,0.00021083,2]
[349948318,1737529881410,-1016.78,0.00021095,2]
[349948319,1737529881427,-500.0,0.00021357,2]
[349948320,1737529881439,-795.94,0.00021369,2]
[349948321,1737529881449,-1016.78,0.00021369,2]
[349948322,1737529881459,-500.0,0.00021631,2]
[349948323,1737529881469,-795.94,0.00021643,2]
[349948324,1737529881479,-1016.78,0.00021643,2]
[349948325,1737529881489,-1052.56547248,0.000219,2]
[349948326,1737529881498,-500.0,0.00021905,2]
[349948327,1737529881508,-795.94,0.00021917,2]
[349948328,1737529881518,-1016.78,0.00021917,2]
[349948329,1737529881527,-66628.88118419,0.00021999,2]
[349948330,1737529881538,-4062.7578749,0.00022,2]
[349948331,1737529881548,-4491.0,0.00022,7]
[349948332,1737529881558,-34204.75615718,0.00022,2]
[349948333,1737529881569,-18715.07309424,0.00022,2]
[349948334,1737529881581,-8374.27746177,0.00022,2]
[349948335,1737529881592,-20654.44043331,0.00022,2]
[349948336,1737529881604,-2084.75959593,0.00022,2]
[349948337,1737529881615,-9417.60826873,0.00022,2]
[349948338,1737530079384,-300.0,0.00018799,2]
[349948339,1737530161538,300.0,0.00018799,2]
[349948340,1737530477826,315.89,0.00016887,2]
[349948341,1737530581914,300.0,0.00018798,2]
[349948342,1737530588910,250.0,0.00018784,2]
[349948343,1737530630443,640.11120282,0.00018,2]
[349948353,1737530776862,3286.5276418,0.00016,2]
[349948359,1737530879168,19607.47115538,0.0001,2]
[349948360,1737530879192,25000.0,0.0001,2]
[349948361,1737530879214,25000.0,0.0001,2]
[349948362,1737530879241,5416.5,0.0001,2]
[349948363,1737530879267,71934.49408471,0.0001,2]
[349948388,1737531031768,-2509.02979265,0.00015,2]
[349948389,1737531031778,-831.55,0.00018534,2]
[349948390,1737531031788,-300.0,0.00018698,2]
[349948391,1737531031797,-19446.6404,0.00018699,2]
[349948392,1737531031810,-219.04,0.00018854,2]
[349948393,1737531031822,-746.801,0.00018898,2]
[349948394,1737531031834,-696.5949,0.00018899,2]
[349948395,1737531031844,-5850.6733,0.00018899,2]
[349948396,1737531031854,-4713.71,0.00018947,2]
[349948397,1737531031867,-172.31,0.0001902,2]
[349948398,1737531031878,-1000.0,0.00019056,2]
[349948399,1737531031890,-615.53071559,0.00019078,2]
[349948400,1737531031908,-9456.6498,0.00019078,2]
[349948401,1737531031918,-297.032,0.00019078,2]
[349948402,1737531031929,-200.0,0.0001909,2]
[349948403,1737531031939,-315.89,0.0001915,2]
[349948404,1737531031949,-500.0,0.00019178,2]
[349948405,1737531031959,-500.0,0.00019178,2]
[349948406,1737531031969,-514.84251089,0.00019178,2]
[349948407,1737531031979,-500.0,0.00019178,2]
[349948408,1737531031988,-500.0,0.00019178,2]
[349948409,1737531031998,-500.0,0.00019178,2]
[349948410,1737531032008,-500.0,0.00019178,2]
[349948411,1737531032018,-500.0,0.00019178,2]
[349948412,1737531032027,-571.33,0.00019178,2]
[349948413,1737531032037,-500.0,0.00019178,2]
[349948414,1737531032047,-500.0,0.00019178,2]
[349948415,1737531032057,-500.0,0.00019178,2]
[349948416,1737531032068,-500.0,0.00019178,2]
[349948417,1737531032078,-500.0,0.00019178,2]
[349948418,1737531032087,-500.0,0.00019178,2]
[349948419,1737531032098,-500.0,0.00019178,2]
[349948420,1737531032108,-500.0,0.00019178,2]
[349948421,1737531032118,-500.0,0.00019178,2]
[349948422,1737531032128,-500.0,0.00019178,2]
[349948423,1737531032137,-523.67,0.00019178,2]
[349948424,1737531032146,-500.0,0.00019178,2]
[349948425,1737531032156,-500.0,0.00019178,2]
[349948426,1737531032165,-500.0,0.00019178,2]
[349948427,1737531032174,-835.8,0.00019178,2]
[349948428,1737531032184,-606.05,0.00019178,2]
[349948429,1737531032194,-997.21,0.00019178,2]
[349948430,1737531032203,-500.0,0.00019178,2]
[349948431,1737531032212,-500.0,0.00019178,2]
[349948432,1737531032222,-1175.17,0.00019178,2]
[349948433,1737531032231,-1100.1,0.00019178,2]
[349948434,1737531032241,-500.0,0.00019178,2]
[349948435,1737531032251,-500.0,0.00019178,2]
[349948436,1737531032260,-791.89,0.00019178,2]
[349948437,1737531032270,-892.67,0.00019178,2]
[349948438,1737531032279,-500.0,0.00019178,2]
[349948439,1737531032289,-950.71,0.00019178,2]
[349948440,1737531032298,-610.05,0.00019178,2]
[349948441,1737531032307,-828.27,0.00019178,2]
[349948442,1737531032317,-500.0,0.00019178,2]
[349948443,1737531032326,-500.0,0.00019178,2]
[349948444,1737531032336,-615.63,0.00019178,2]
[349948445,1737531032345,-500.0,0.00019178,2]
[349948446,1737531032355,-511.38,0.00019178,2]
[349948447,1737531032364,-500.0,0.00019178,2]
[349948448,1737531032374,-500.0,0.00019178,2]
[349948449,1737531032388,-500.0,0.00019178,2]
[349948450,1737531032398,-500.0,0.00019178,2]
[349948451,1737531032408,-500.0,0.00019178,2]
[349948452,1737531032417,-500.0,0.00019178,2]
[349948453,1737531032430,-500.0,0.00019178,2]
[349948454,1737531032439,-500.0,0.00019178,2]
[349948455,1737531032449,-766.07,0.00019178,2]
[349948456,1737531032458,-905.34,0.00019178,2]
[349948457,1737531032468,-1066.22,0.00019178,2]
[349948458,1737531032478,-500.0,0.00019178,2]
[349948459,1737531032487,-500.0,0.00019178,2]
[349948460,1737531032496,-500.0,0.00019178,2]
[349948461,1737531032506,-500.0,0.00019178,2]
[349948462,1737531032517,-500.0,0.00019178,2]
[349948463,1737531032526,-500.0,0.00019178,2]
[349948464,1737531032536,-500.0,0.00019178,2]
[349948465,1737531032545,-552.48,0.00019178,2]
[349948466,1737531032555,-1153.54,0.00019178,2]
[349948467,1737531032564,-500.0,0.00019178,2]
[349948468,1737531032574,-1243.73,0.00019178,2]
[349948469,1737531032584,-1064.91,0.00019178,2]
[349948470,1737531032594,-500.0,0.00019178,2]
[349948471,1737531032604,-500.0,0.00019178,2]
[349948472,1737531032613,-509.13,0.00019178,2]
[349948473,1737531032622,-500.0,0.00019178,2]
[349948474,1737531032632,-500.0,0.00019178,2]
[349948475,1737531032642,-500.0,0.00019178,2]
[349948476,1737531032652,-500.0,0.00019178,2]
[349948477,1737531032661,-500.0,0.00019178,2]
[349948478,1737531032671,-500.0,0.00019178,2]
[349948479,1737531032680,-500.0,0.00019178,2]
[349948480,1737531032690,-500.0,0.00019178,2]
[349948481,1737531032700,-830.0,0.00019178,2]
[349948482,1737531032710,-582.16,0.00019178,2]
[349948483,1737531032720,-500.0,0.00019178,2]
[349948484,1737531032729,-510.14848596,0.00019178,2]
[349948485,1737531032739,-500.0,0.00019178,2]
[349948486,1737531032750,-500.0,0.00019178,2]
[349948487,1737531032760,-1068.34,0.00019178,2]
[349948488,1737531032769,-500.0,0.00019178,2]
[349948489,1737531032779,-724.26,0.00019178,2]
[349948490,1737531032789,-515.01000428,0.00019178,2]
[349948491,1737531032799,-536.57,0.00019178,2]
[349948492,1737531032808,-982.48,0.00019178,2]
[349948493,1737531032818,-92098.06799814,0.00019178,2]
[349948494,1737531032828,-4825.94632736,0.00019351,2]
[349948495,1737531032838,-2910.00339624,0.00019352,2]
[349948496,1737531032847,-597.17,0.0001945,2]
[349948497,1737531032857,-577.99,0.0001945,2]
[349948498,1737531032867,-3708.62,0.0001945,2]
[349948499,1737531032876,-500.0,0.0001945,2]
[349948500,1737531032885,-1222.174591,0.0001945,2]
[349948501,1737531032894,-847.0,0.0001945,2]
[349948502,1737531032904,-158.940975,0.0001945,2]
[349948503,1737531032914,-159.923653,0.0001945,2]
[349948504,1737531032924,-500.0,0.0001945,2]
[349948505,1737531032933,-500.0,0.0001945,2]
[349948506,1737531032943,-1786.24,0.0001945,2]
[349948507,1737531032953,-832.180089,0.0001945,2]
[349948508,1737531032963,-500.0,0.0001945,2]
[349948509,1737531032972,-500.0,0.0001945,2]
[349948510,1737531032982,-1052.61,0.0001945,2]
[349948511,1737531032991,-710.55,0.0001945,2]
[349948512,1737531033001,-845.18,0.0001945,2]
[349948513,1737531033011,-500.0,0.0001945,2]
[349948514,1737531033021,-2566.35989476,0.0001945,2]
[349948515,1737531033046,-115.28010524,0.0001945,2]
[349948516,1737531033057,-828.04,0.0001945,2]
[349948517,1737531033066,-147.69493336,0.0001945,2]
[349948518,1737531033257,-383.62980162,0.0001945,2]
[349948539,1737531039706,-500.0,0.00019178,2]
[349948540,1737531039717,-755.61526502,0.0001945,2]
[349948541,1737531039727,-585.43,0.0001945,2]
[349948542,1737531039737,-233.17223594,0.0001945,2]
[349948543,1737531039779,-1342.06776406,0.0001945,2]
[349948544,1737531039790,-518.2,0.0001945,2]
[349948545,1737531039800,-1275.92,0.0001945,2]
[349948546,1737531039809,-834.41,0.0001945,2]
[349948547,1737531039819,-1095.48,0.0001945,2]
[349948548,1737531039829,-2632.79,0.0001945,2]
[349948549,1737531039838,-500.0,0.0001945,2]
[349948550,1737531039848,-547.48,0.0001945,2]
[349948551,1737531039858,-3469.59,0.0001945,2]
[349948552,1737531039869,-1112.7,0.0001945,2]
[349948553,1737531039879,-2321.78,0.0001945,2]
[349948554,1737531039889,-500.0,0.0001945,2]
[349948555,1737531039899,-628.79,0.0001945,2]
[349948556,1737531039909,-1166.04,0.0001945,2]
[349948557,1737531039919,-1298.3,0.0001945,2]
[349948558,1737531039929,-500.0,0.0001945,2]
[349948559,1737531039939,-2087.64,0.0001945,2]
[349948560,1737531039949,-4266.52,0.0001945,2]
[349948561,1737531039961,-1474.51,0.0001945,2]
[349948562,1737531039971,-500.0,0.0001945,2]
[349948563,1737531039981,-839.99,0.0001945,2]
[349948564,1737531039992,-875.15,0.0001945,2]
[349948565,1737531040001,-500.0,0.0001945,2]
[349948566,1737531040011,-719.50928502,0.0001945,2]
[349948567,1737531040049,-618.30071498,0.0001945,2]
[349948568,1737531040062,-500.0,0.0001945,2]
[349948569,1737531040072,-500.0,0.0001945,2]
[349948570,1737531040082,-2672.55,0.0001945,2]
[349948571,1737531040092,-500.0,0.0001945,2]
[349948572,1737531040102,-864.13,0.0001945,2]
[349948573,1737531040113,-500.0,0.0001945,2]
[349948574,1737531040123,-500.0,0.0001945,2]
[349948575,1737531040133,-175.81667387,0.0001945,2]
[349948576,1737531040142,-500.0,0.0001945,2]
[349948577,1737531040152,-1024.38,0.0001945,2]
[349948578,1737531040162,-685.68,0.0001945,2]
[349948579,1737531040172,-500.0,0.0001945,2]
[349948581,1737531040182,-500.0,0.0001945,2]
[349948582,1737531040192,-500.0,0.0001945,2]
[349948583,1737531040202,-500.0,0.0001945,2]
[349948584,1737531040211,-1535.34,0.0001945,2]
[349948585,1737531040221,-500.0,0.0001945,2]
[349948586,1737531040231,-201.17081433,0.0001945,2]
[349948587,1737531040241,-1858.35,0.0001945,2]
[349948588,1737531040251,-500.0,0.0001945,2]
[349948589,1737531040260,-500.0,0.0001945,2]
[349948590,1737531040270,-500.0,0.0001945,2]
[349948591,1737531040281,-373.64427317,0.00019451,2]
[349948592,1737531040291,-500.0,0.00019451,2]
[349948594,1737531040302,-506.29241569,0.00019451,2]
[349948595,1737531040312,-500.0,0.00019451,2]
[349948598,1737531040322,-500.0,0.00019451,2]
[349948600,1737531040332,-500.0,0.00019451,2]
[349948601,1737531040342,-500.0,0.00019451,2]
[349948602,1737531040352,-500.0,0.00019451,2]
[349948603,1737531040362,-500.0,0.00019451,2]
[349948604,1737531040372,-500.0,0.00019451,2]
[349948605,1737531040383,-500.0,0.00019451,2]
[349948606,1737531040396,-501.94916686,0.00019451,2]
[349948607,1737531040406,-720.02,0.00019451,2]
[349948608,1737531040416,-500.0,0.00019451,2]
[349948609,1737531040427,-868.84,0.00019451,2]
[349948610,1737531040437,-501.43241384,0.00019451,2]
[349948611,1737531040446,-500.0,0.00019451,2]
[349948612,1737531040457,-501.52404158,0.00019451,2]
[349948613,1737531040469,-1014.86,0.00019451,2]
[349948614,1737531040479,-502.32208662,0.00019451,2]
[349948615,1737531040489,-500.0,0.00019451,2]
[349948616,1737531040499,-502.22314631,0.00019451,2]
[349948617,1737531040509,-500.0,0.00019451,2]
[349948618,1737531040519,-500.0,0.00019451,2]
[349948619,1737531040528,-506.35868684,0.00019451,2]
[349948620,1737531040538,-500.0,0.00019451,2]
[349948621,1737531040547,-500.0,0.00019451,2]